lending/lending_fUSD_20250102
["ID","MTS","AMOUNT","RATE_DAILY","PERIOD"]
[347444240,1735818638731,-150.0,9.897e-05,2]
[347444242,1735818638741,-150.0,9.901e-05,2]
[347444244,1735818638751,-150.0,9.906e-05,2]
[347444246,1735818638760,-150.0,9.908e-05,2]
[347444248,1735818638769,-150.0,9.908e-05,2]
[347444250,1735818638779,-150.0,9.909e-05,2]
[347444252,1735818638788,-150.0,9.91e-05,2]
[347444254,1735818638798,-150.0,9.914e-05,2]
[347444256,1735818638807,-150.0,9.917e-05,2]
[347444258,1735818638816,-150.0,9.918e-05,2]
[347444260,1735818638826,-150.0,9.924e-05,2]
[347444262,1735818638835,-150.0,9.926e-05,2]
[347444264,1735818638844,-150.0,9.927e-05,2]
[347444266,1735818638854,-150.0,9.928e-05,2]
[347444268,1735818638864,-150.0,9.932e-05,2]
[347444271,1735818638873,-150.0,9.933e-05,2]
[347444273,1735818638882,-150.0,9.937e-05,2]
[347444275,1735818638892,-150.0,9.94e-05,2]
[347444277,1735818638901,-150.0,9.943e-05,2]
[347444279,1735818638911,-150.0,9.944e-05,2]
[347444281,1735818638920,-150.0,9.945e-05,2]
[347444283,1735818638929,-150.0,9.946e-05,2]
[347444285,1735818638938,-150.0,9.953e-05,2]
[347444287,1735818638947,-150.0,9.96e-05,2]
[347444289,1735818638956,-150.0,9.961e-05,2]
[347444291,1735818638966,-150.0,9.962e-05,2]
[347444293,1735818638975,-150.0,9.962e-05,2]
[347444295,1735818638986,-150.0,9.964e-05,2]
[347444297,1735818638995,-150.0,9.964e-05,2]
[347444299,1735818639006,-150.0,9.964e-05,2]
[347444301,1735818639014,-1000.0,9.964e-05,2]
[347444303,1735818639023,-150.0,9.975e-05,2]
[347444305,1735818639032,-150.0,9.982e-05,2]
[347444307,1735818639042,-150.0,9.983e-05,2]
[347444309,1735818639051,-2113.481647,9.986e-05,2]
[347444311,1735818639060,-5266.4641818,9.986e-05,2]
[347444313,1735818639069,-28.60787177,9.988e-05,2]
[347444315,1735818639081,-121.39212823,9.988e-05,2]
[347444317,1735818639090,-837.684,9.989e-05,2]
[347444319,1735818639099,-582.89,9.989e-05,2]
[347444321,1735818639108,-159.583,9.989e-05,2]
[347444323,1735818639118,-29651.26143527,9.99e-05,2]
[347444326,1735818639129,-992.094,9.99e-05,2]
[347444327,1735818639140,-466.48125778,9.99e-05,2]
[347444328,1735818639152,-223482.47842719,9.99e-05,2]
[347444333,1735818641176,-3532.37291836,9.99e-05,2]
[347444334,1735818641188,-497.512011,9.99e-05,2]
[347444335,1735818641199,-500.0,9.99e-05,2]
[347444336,1735818641223,-289945.2639674,9.99e-05,2]
[347444337,1735818641234,-534.7143588,9.99e-05,2]
[347444338,1735818641245,-592.53,9.99e-05,2]
[347444339,1735818641257,-2144.6,9.99e-05,2]
[347444352,1735818643524,-1734.55753028,9.99e-05,2]
[347444353,1735818643589,-34572.18501297,9.99e-05,2]
[347444354,1735818643663,-1609.75557302,9.99e-05,2]
[347444355,1735818643721,-4919.45,9.99e-05,2]
[347444356,1735818643732,-454643.97501847,9.99e-05,2]
[347444361,1735818646424,-935968.85475096,9.99e-05,2]
[347444362,1735818646435,-38820.32854667,9.99e-05,2]
[347444363,1735818646695,-26462.83838711,9.99e-05,2]
[347444374,1735818745350,215.438,9.49e-05,2]
[347444386,1735819249807,250.0,9.005e-05,2]
[347444387,1735819271081,557.987,9.005e-05,2]
[347444388,1735819271103,442.013,9.005e-05,2]
[347444389,1735819323739,473.24,9.005e-05,2]
[347444390,1735819340574,500.0,8.99e-05,2]
[347444391,1735819341074,500.0,8.99e-05,2]
[347444392,1735819341676,500.0,8.99e-05,2]
[347444393,1735819342329,500.0,8.99e-05,2]
[347444394,1735819343093,500.0,8.99e-05,2]
[347444395,1735819344219,525.63,8.99e-05,2]
[347444396,1735819389131,206.16,9.49e-05,2]
[347444397,1735819409198,500.0,8.99e-05,2]
[347444398,1735819409839,500.0,8.99e-05,2]
[347444399,1735819474926,500.0,8.99e-05,2]
[347444400,1735819475654,500.0,8.99e-05,2]
[347444401,1735819482266,371.16,8.219e-05,2]
[347444402,1735819569739,250.0,9.007e-05,2]
[347444404,1735819597531,677.07,9.007e-05,2]
[347444405,1735819626253,2554.727,9.079e-05,2]
[347444406,1735819626275,1464.883,9.079e-05,2]
[347444407,1735819633720,200.0,9e-05,3]
[347444408,1735819635867,500.0,9.1e-05,3]
[347444410,1735819638021,800.0,9.2e-05,3]
[347444411,1735819640212,1100.0,9.3e-05,3]
[347444412,1735819642638,1300.0,9.4e-05,3]
[347444413,1735819645108,200.0,9.5e-05,3]
[347444415,1735819647258,200.0,9.6e-05,3]
[347444416,1735819797981,-163.06,9.615e-05,2]
[347444417,1735819798005,-200.0,9.7e-05,3]
[347444418,1735819798028,-230.61,9.706e-05,2]
[347444419,1735819798052,-150.0,9.72e-05,2]
[347444420,1735819798076,-150.0,9.784e-05,2]
[347444421,1735819798099,-300.0,9.789e-05,2]
[347444422,1735819798121,-2591.33,9.79e-05,2]
[347444427,1735819831530,-2816.84400929,9.79e-05,2]
[347444428,1735819831542,-2100.0,9.79e-05,2]
[347444429,1735819831553,-5012.01488347,9.79e-05,2]
[347444430,1735819831585,-342.527592,9.79e-05,2]
[347444431,1735819831599,-720.52065708,9.79e-05,2]
[347444432,1735819831639,-1950.0,9.79e-05,2]
[347444433,1735819831650,-1616.193997,9.79e-05,2]
[347444434,1735819831661,-6400.0,9.79e-05,2]
[347444435,1735819831725,-1305.49139509,9.79e-05,2]
[347444436,1735819831735,-1259.99999995,9.79e-05,2]
[347444437,1735819831747,-404.92261432,9.79e-05,2]
[347444438,1735819831758,-347855.7014007,9.79e-05,2]
[347444439,1735819831790,-82982.30086997,9.79e-05,2]
[347444440,1735819831801,-585.04,9.79e-05,2]
[347444441,1735819831811,-3026.48911653,9.79e-05,2]
[347444442,1735819831822,-4941.96501724,9.79e-05,2]
[347444443,1735819831833,-742.75665018,9.79e-05,2]
[347444444,1735819831865,-7780.23843371,9.79e-05,2]
[347444445,1735819831876,-14529.29051088,9.79e-05,2]
[347444446,1735819831885,-5176.30948912,9.8e-05,2]
[347444447,1735819831897,-1666.75681614,9.8e-05,2]
[347444448,1735819831990,-5542.58015884,9.8e-05,2]
[347444449,1735819832001,-4767.4,9.8e-05,2]
[347444483,1735819837968,-1917.16,9.79e-05,2]
[347444484,1735819838040,-674.17,9.79e-05,2]
[347444486,1735819838049,-2944.6504404,9.8e-05,2]
[347444488,1735819838059,-150.0,9.8e-05,2]
[347444490,1735819838068,-150.0,9.8e-05,2]
[347444492,1735819838077,-150.0,9.8e-05,2]
[347444494,1735819838086,-200.0,9.8e-05,3]
[347444496,1735819838096,-500.0,9.808e-05,2]
[347444498,1735819838105,-1500.0,9.835e-05,2]
[347444500,1735819838114,-150.0,9.836e-05,2]
[347444502,1735819838123,-150.0,9.845e-05,2]
[347444504,1735819838132,-502.0,9.89e-05,2]
[347444506,1735819838141,-844.0,9.9e-05,3]
[347444508,1735819838150,-150.0,9.914e-05,2]
[347444510,1735819838160,-6319.5923234,9.916e-05,2]
[347444512,1735819838170,-670.147,9.933e-05,2]
[347444514,1735819838179,-150.0,9.936e-05,2]
[347444515,1735819838189,-150.0,9.973e-05,2]
[347444517,1735819838198,-6319.5923234,9.974e-05,2]
[347444519,1735819838207,-16992.62934367,9.976e-05,2]
[347444521,1735819838217,-16992.62934367,9.978e-05,2]
[347444522,1735819838227,-150.0,9.985e-05,2]
[347444523,1735819838236,-858.0606297,9.986e-05,2]
[347444524,1735819838246,-2138.1522658,9.986e-05,2]
[347444525,1735819838255,-11808.49633036,9.986e-05,2]
[347444526,1735819838267,-5184.13301331,9.986e-05,2]
[347444527,1735819838277,-230.52437486,9.987e-05,2]
[347444528,1735819838286,-558.6,9.989e-05,2]
[347444529,1735819838295,-500.0,9.989e-05,2]
[347444530,1735819838304,-329.9031951,9.989e-05,2]
[347444531,1735819838313,-2776.65080792,9.99e-05,2]
[347444532,1735819838325,-1132.01834283,9.99e-05,2]
[347444533,1735819838336,-428.21118795,9.99e-05,2]
[347444534,1735819838369,-500.0,9.99e-05,2]
[347444535,1735819838379,-573.45,9.99e-05,2]
[347444536,1735819838390,-10366.37801371,9.99e-05,2]
[347444537,1735819838423,-2608.14332056,9.99e-05,2]
[347444538,1735819838434,-409.06244643,9.99e-05,2]
[347444539,1735819838445,-964.21202734,9.99e-05,2]
[347444540,1735819838467,-20469.56654378,9.99e-05,2]
[347444541,1735819838478,-1018.0,9.99e-05,2]
[347444542,1735819838535,-732.66465005,9.99e-05,2]
[347444546,1735819839442,-707.37000039,9.99e-05,2]
[347444547,1735819839509,-648.27662336,9.99e-05,2]
[347444548,1735819839521,-695.72,9.99e-05,2]
[347444549,1735819839562,-1780.83276905,9.99e-05,2]
[347444550,1735819839573,-4019.09127962,9.99e-05,2]
[347444551,1735819839584,-315.6,9.99e-05,2]
[347444571,1735819840002,-575.04382283,9.99e-05,2]
[347444573,1735819840013,-553.06899972,9.99e-05,2]
[347444575,1735819840024,-385.488,9.99e-05,2]
[347444580,1735819840061,-32294.9877599,9.99e-05,2]
[347444583,1735819840079,-5606.14525523,9.99e-05,2]
[347444626,1735819842558,-372.9660821,9.99e-05,2]
[347444641,1735819842709,-560.94840475,9.99e-05,2]
[347444650,1735819845661,-4719.57656358,9.99e-05,2]
[347444901,1735819885871,208.69,9.49e-05,2]
[347444902,1735819895445,-1050.47406241,9.79e-05,2]
[347444903,1735819895471,-150.0,9.897e-05,2]
[347444904,1735819895496,-2584.52593759,9.99e-05,2]
[347444905,1735819907375,163.06,9.589e-05,2]
[347444906,1735820047477,1178.12,8.971e-05,2]
[347444908,1735820197141,1000.0,9.545e-05,2]
[347444910,1735820284829,250.0,9.582e-05,2]
[347444911,1735820325431,366.94,8.219e-05,2]
[347444912,1735820381247,236.62,9.6e-05,2]
[347444913,1735820452259,315.15,9.587e-05,2]
[347444914,1735820540824,4483.73,0.00023,120]
[347444915,1735820574649,199.914,9.49e-05,2]
[347444916,1735820619955,250.0,9.441e-05,2]
[347444917,1735820707787,66.623,8.975e-05,2]
[347444918,1735820707810,83.377,8.975e-05,2]
[347444919,1735820708144,150.0,9.058e-05,2]
[347444920,1735820708465,150.0,9.142e-05,2]
[347444921,1735820708787,150.0,9.225e-05,2]
[347444922,1735820709098,150.0,9.308e-05,2]
[347444923,1735820709786,150.0,9.391e-05,2]
[347444924,1735820709926,150.0,9.474e-05,2]
[347444925,1735820710074,150.0,9.557e-05,2]
[347444926,1735820713615,150.0,8.975e-05,2]
[347444927,1735820713948,150.0,9.175e-05,2]
[347444928,1735820714270,150.0,9.374e-05,2]
[347444929,1735820714585,150.0,9.574e-05,2]
[347444930,1735820722991,150.0,8.975e-05,2]
[347444931,1735820723088,150.0,9.142e-05,2]
[347444932,1735820723343,150.0,9.308e-05,2]
[347444933,1735820723439,150.0,9.474e-05,2]
[347444934,1735820730030,150.42096093,8.975e-05,2]
[347444935,1735820731941,150.71120439,8.975e-05,2]
[347444936,1735820745980,150.00000001,8.975e-05,2]
[347444937,1735820787858,4942.06967715,0.00023,120]
[347444963,1735821031673,-150.0,9.64e-05,2]
[347444964,1735821031683,-150.0,9.64e-05,2]
[347444965,1735821031693,-150.0,9.723e-05,2]
[347444966,1735821031702,-150.0,9.773e-05,2]
[347444967,1735821031712,-150.0,9.806e-05,2]
[347444968,1735821031721,-150.0,9.806e-05,2]
[347444969,1735821031730,-99.992,9.843e-05,2]
[347444970,1735821031742,-50.008,9.843e-05,2]
[347444971,1735821031752,-636.0,9.856e-05,2]
[347444972,1735821031762,-150.0,9.856e-05,2]
[347444973,1735821031772,-168.01,9.887e-05,2]
[347444974,1735821031781,-150.0,9.889e-05,2]
[347444975,1735821031791,-500.0,9.89e-05,2]
[347444976,1735821031800,-150.0,9.892e-05,2]
[347444977,1735821031810,-150.0,9.973e-05,2]
[347444978,1735821031819,-150.0,9.973e-05,2]
[347444979,1735821031828,-150.0,9.973e-05,2]
[347444980,1735821031838,-1166.2627013,9.986e-05,2]
[347444981,1735821031847,-536.118,9.989e-05,2]
[347444982,1735821031857,-535.32,9.989e-05,2]
[347444983,1735821031866,-4247.56195475,9.99e-05,2]
[347444984,1735821031878,-2176.09119283,9.99e-05,2]
[347444985,1735821031889,-38104.74280814,9.99e-05,2]
[347444986,1735821031937,-29149.7832,9.99e-05,2]
[347444987,1735821031961,-3101.22842254,9.99e-05,2]
[347444988,1735821032001,-0.05216428,9.99e-05,2]
[347444989,1735821032031,-5089.13508383,9.99e-05,2]
[347444990,1735821032064,-500.0,9.99e-05,2]
[347444991,1735821032150,-1361.54758258,9.99e-05,2]
[347444992,1735821032161,-69027.18022634,9.99e-05,2]
[347444993,1735821033975,-1246.38,9.99e-05,2]
[347444994,1735821033986,-1792.327,9.99e-05,2]
[347444995,1735821033999,-1227.1353198,9.99e-05,2]
[347445012,1735821037644,-8820.12244061,9.99e-05,2]
[347445013,1735821037655,-22387.20481563,9.99e-05,2]
[347445014,1735821037666,-4200.0,9.99e-05,2]
[347445015,1735821037677,-3103.57100234,9.99e-05,2]
[347445016,1735821037714,-1008.3536941,9.806e-05,2]
[347445017,1735821037723,-9459.7891184,9.99e-05,2]
[347445018,1735821037735,-12749.3248458,9.99e-05,2]
[347445019,1735821037754,-431.74239301,9.99e-05,2]
[347445184,1735821039588,-2200.45424,9.99e-05,2]
[347445196,1735821039693,-24135.67009592,9.99e-05,2]
[347445334,1735821040992,-1942.37721319,9.99e-05,2]
[347445336,1735821041003,-3757.89943146,9.99e-05,2]
[347445341,1735821041050,-1353.23790222,9.99e-05,2]
[347445343,1735821041061,-14891335.276564,9.99e-05,2]
[347445346,1735821041073,-23901.06585166,9.99e-05,2]
[347445348,1735821041084,-399.44893072,9.99e-05,2]
[347445352,1735821041116,-1215.03383588,9.99e-05,2]
[347445354,1735821041127,-2829.42,9.99e-05,2]
[347445356,1735821041139,-450.015,9.99e-05,2]
[347445359,1735821041153,-455.09448285,9.99e-05,2]
[347445439,1735821042705,-468.649,9.99e-05,2]
[347445440,1735821042769,-732.542,9.99e-05,2]
[347445441,1735821042782,-1184.86727928,9.99e-05,2]
[347445442,1735821042824,-272767.75298198,9.99e-05,2]
[347445443,1735821042838,-893705.29088927,9.99e-05,2]
[347445444,1735821042882,-1509.09021663,9.99e-05,2]
[347445445,1735821042946,-422.30216206,9.99e-05,2]
[347445446,1735821042957,-348.34,9.99e-05,2]
[347445447,1735821043003,-369.12270208,9.99e-05,2]
[347445456,1735821045773,-2757.92484696,9.99e-05,2]
[347445459,1735821045991,-1204.95257994,9.99e-05,2]
[347445465,1735821113722,1000.0,9.575e-05,2]
[347445466,1735821114094,1798.02535892,9.999e-05,20]
[347445467,1735821135413,202.734,9.49e-05,2]
[347445468,1735821176430,250.0,9.534e-05,2]
[347445471,1735821357066,652.3,9.556e-05,2]
[347445472,1735821360850,405.77,9.562e-05,2]
[347445473,1735821410581,348.59,8.219e-05,2]
[347445474,1735821534433,250.0,9.601e-05,2]
[347445475,1735821567308,281.81,9.604e-05,2]
[347445476,1735821769378,194.178,9.49e-05,2]
[347445485,1735822098458,250.0,9.51e-05,2]
[347445486,1735822100692,1000.0,9.51e-05,2]
[347445488,1735822215928,444.98,9.48e-05,2]
[347445494,1735822232060,-300.0,9.641e-05,2]
[347445495,1735822232070,-22011.06,9.642e-05,2]
[347445496,1735822232080,-164.79,9.658e-05,2]
[347445497,1735822232091,-1100.42355062,9.79e-05,2]
[347445498,1735822232100,-1027.82918375,9.79e-05,2]
[347445499,1735822232109,-1094.72845811,9.799e-05,2]
[347445500,1735822232119,-4608.97480141,9.8e-05,2]
[347445501,1735822232128,-150.0,9.856e-05,2]
[347445502,1735822232138,-150.0,9.856e-05,2]
[347445503,1735822232147,-334.2428762,9.986e-05,2]
[347445504,1735822232157,-428.894,9.989e-05,2]
[347445505,1735822232166,-513.02,9.989e-05,2]
[347445506,1735822232175,-75750.93462822,9.99e-05,2]
[347445513,1735822237841,-1060.27913176,9.79e-05,2]
[347445514,1735822237851,-63971.11656813,9.99e-05,2]
[347445515,1735822237949,-853.99859106,9.99e-05,2]
[347445516,1735822237962,-417.98,9.99e-05,2]
[347445520,1735822240300,-1165.35320515,9.99e-05,2]
[347445521,1735822240311,-731.31115522,9.99e-05,2]
[347445522,1735822240375,-3372.8380844,9.99e-05,2]
[347445523,1735822240387,-695.67500002,9.99e-05,2]
[347445524,1735822240398,-1038.12363104,9.99e-05,2]
[347445525,1735822240409,-530.655,9.99e-05,2]
[347445526,1735822240494,-48489.6972,9.99e-05,2]
[347445527,1735822240524,-3252.53755311,9.99e-05,2]
[347445528,1735822240537,-1869.18,9.99e-05,2]
[347445529,1735822240585,-656.14,9.99e-05,2]
[347445533,1735822242881,-2949.78134775,9.99e-05,2]
[347445534,1735822242892,-385.6032014,9.99e-05,2]
[347445535,1735822242997,-2902.199811,9.99e-05,2]
[347445542,1735822243329,-4479.20749108,9.99e-05,2]
[347445543,1735822243342,-2829.18561165,9.99e-05,2]
[347445544,1735822243353,-975.06641355,9.99e-05,2]
[347445545,1735822243387,-8904.5188215,9.99e-05,2]
[347445546,1735822243398,-1723.09854879,9.99e-05,2]
[347445547,1735822243409,-4295.03987508,9.99e-05,2]
[347445548,1735822243421,-1558.32946893,9.99e-05,2]
[347445549,1735822243433,-273.88727203,9.99e-05,2]
[347445550,1735822243444,-4791.17830158,9.99e-05,2]
[347445551,1735822243474,-284.3,9.99e-05,2]
[347445552,1735822243486,-3191.0,9.99e-05,2]
[347445553,1735822243497,-452.9,9.99e-05,2]
[347445554,1735822243508,-428.9,9.99e-05,2]
[347445555,1735822243519,-458.00134583,9.99e-05,2]
[347445559,1735822245850,-29860.58770842,9.99e-05,2]
[347445565,1735822245909,-810.3799998,9.99e-05,2]
[347445567,1735822245927,-1519.5939267,9.99e-05,2]
[347445570,1735822246166,-692.13336901,9.99e-05,2]
[347445574,1735822246204,-9327.01151077,9.99e-05,2]
[347445576,1735822246215,-4168.64935831,9.99e-05,2]
[347445578,1735822246226,-8712.70635,9.99e-05,2]
[347445582,1735822246255,-3460766.23112101,9.99e-05,2]
[347445587,1735822246292,-25151.22306801,9.99e-05,2]
[347447579,1735822275984,196.254,9.49e-05,2]
[347447582,1735822490391,364.82,8.219e-05,2]
[347447583,1735822903209,397.82,9.306e-05,2]
[347447584,1735822949360,976.23483467,9.274e-05,2]
[347447585,1735822949382,122.27516533,9.274e-05,2]
[347447586,1735822962795,188.346,9.49e-05,2]
[347447587,1735823006288,1000.0,9.285e-05,2]
[347447588,1735823092056,250.0,9.274e-05,2]
[347447589,1735823105589,150.0,8.975e-05,2]
[347447590,1735823107754,150.71379884,8.975e-05,2]
[347447591,1735823121125,202.88,9.23e-05,2]
[347447592,1735823164201,250.0,9.205e-05,2]
[347447594,1735823349149,250.0,9.259e-05,2]
[347447595,1735823372539,648.23,9.226e-05,2]
[347447606,1735823432125,-500.0,9.647e-05,2]
[347447607,1735823432134,-642.81038424,9.79e-05,2]
[347447608,1735823432277,-507.959,9.79e-05,2]
[347447609,1735823432288,-2034.97204889,9.79e-05,2]
[347447610,1735823432297,-1007.61333604,9.79e-05,2]
[347447611,1735823432306,-150.0,9.806e-05,2]
[347447612,1735823432315,-657.7079,9.89e-05,2]
[347447613,1735823432324,-2416.0,9.973e-05,2]
[347447614,1735823432333,-809.8458163,9.985e-05,2]
[347447615,1735823432343,-246.81401648,9.987e-05,2]
[347447616,1735823432353,-300.0,9.988e-05,2]
[347447617,1735823432363,-1142.81038424,9.989e-05,3]
[347447618,1735823432373,-343.116,9.989e-05,2]
[347447619,1735823432383,-500.0,9.989e-05,2]
[347447620,1735823432392,-19138.11697913,9.99e-05,2]
[347447621,1735823432422,-386.666,9.99e-05,2]
[347447624,1735823432491,-3598.73535,9.99e-05,2]
[347447625,1735823432504,-387.0,9.99e-05,2]
[347447626,1735823432519,-1940.25945528,9.99e-05,2]
[347447632,1735823438086,-1111.86041366,9.99e-05,2]
[347447633,1735823438197,-1117.2123679,9.99e-05,2]
[347447634,1735823438209,-20883.680535,9.99e-05,2]
[347447635,1735823438220,-11484.47705012,9.99e-05,2]
[347447645,1735823440283,-47388.5,9.99e-05,2]
[347447697,1735823443099,-436.464,9.99e-05,2]
[347447698,1735823443150,-19403.2,9.99e-05,2]
[347447699,1735823443303,-496.68702099,9.99e-05,2]
[347447702,1735823446277,-1648.3540861,9.99e-05,2]
[347447703,1735823446288,-2156939.705487,9.99e-05,2]
[347447704,1735823446302,-2407.6,9.99e-05,2]
[347447705,1735823446331,-1957.704,9.99e-05,2]
[347447706,1735823446346,-19440.3043063,9.99e-05,2]
[347447707,1735823446357,-34545.57,9.99e-05,2]
[347447708,1735823446368,-281.00881241,9.99e-05,2]
[347447709,1735823446416,-6401.99999999,9.99e-05,2]
[347447710,1735823446499,-263883.84280107,9.99e-05,2]
[347447711,1735823446512,-2837.05217624,9.99e-05,2]
[347447714,1735823517638,554.24,9.529e-05,2]
[347447715,1735823529177,190.088,9.49e-05,2]
[347447716,1735823555038,380.3,8.219e-05,2]
[347447717,1735823560448,200.0,9.529e-05,2]
[347447718,1735823642983,505.9,9.401e-05,2]
[347447719,1735823687091,333.28,9.326e-05,3]
[347447720,1735823689607,206.50992,8.991e-05,2]
[347447730,1735823691096,152.894236,8.991e-05,2]
[347447731,1735823867181,163.53,9.245e-05,2]
[347447732,1735823939290,1000.0,9.224e-05,2]
[347447733,1735823957779,250.0,9.217e-05,2]
[347447734,1735823961881,2850.81287983,9.217e-05,2]
[347447735,1735823961907,10000.0,9.217e-05,2]
[347447736,1735823961929,10000.0,9.217e-05,2]
[347447737,1735823961950,1039.18712017,9.217e-05,2]
[347447738,1735824045367,250.0,9.273e-05,2]
[347447739,1735824079389,405.33,9.243e-05,2]
[347447740,1735824160702,182.357,9.49e-05,2]
[347447742,1735824303549,440.98,9.274e-05,2]
[347447743,1735824307455,150.0,8.975e-05,2]
[347447747,1735824536407,500.0,9.202e-05,2]
[347447748,1735824551523,378.31,8.219e-05,2]
[347447752,1735824575239,1000.0,0.00023,120]
[347447753,1735824576463,1000.0,0.00023,120]
[347447754,1735824577710,1000.0,0.00023,120]
[347447755,1735824578834,1000.0,0.00023,120]
[347447757,1735824579601,1000.0,0.00023,120]
[347447774,1735824632230,-168.01,9.621e-05,2]
[347447776,1735824632240,-1038.37984648,9.79e-05,2]
[347447777,1735824632250,-1143.19002321,9.79e-05,2]
[347447778,1735824632260,-636.0,9.856e-05,2]
[347447779,1735824632269,-2500.0,9.89e-05,2]
[347447780,1735824632279,-2500.0,9.89e-05,2]
[347447781,1735824632288,-2060.38433409,9.89e-05,2]
[347447782,1735824632304,-905.59839347,9.89e-05,2]
[347447783,1735824632315,-430.68063875,9.89e-05,2]
[347447784,1735824632358,-2093.0,9.89e-05,2]
[347447785,1735824632369,-2961.68635478,9.89e-05,2]
[347447786,1735824632428,-66963.65027891,9.89e-05,2]
[347447787,1735824632437,-158.41911395,9.9e-05,2]
[347447788,1735824632447,-533.206,9.936e-05,2]
[347447789,1735824632456,-159.583,9.936e-05,2]
[347447790,1735824632465,-2134.6308085,9.985e-05,2]
[347447791,1735824632474,-152.2721922,9.985e-05,2]
[347447792,1735824632484,-449.20422906,9.987e-05,2]
[347447793,1735824632493,-1238.32798222,9.989e-05,3]
[347447794,1735824632503,-1238.32798222,9.989e-05,3]
[347447795,1735824632513,-1238.32798221,9.989e-05,3]
[347447796,1735824632522,-500.0,9.989e-05,2]
[347447797,1735824632531,-500.0,9.989e-05,2]
[347447798,1735824632541,-318.19692873,9.989e-05,2]
[347447799,1735824632550,-500.0,9.989e-05,2]
[347447800,1735824632559,-409.33451819,9.989e-05,2]
[347447801,1735824632569,-500.0,9.989e-05,2]
[347447802,1735824632579,-85979.8628742,9.99e-05,2]
[347447803,1735824632596,-618.80041116,9.99e-05,2]
[347447899,1735824638208,-1496.98676046,9.99e-05,2]
[347447900,1735824638219,-912.94242217,9.99e-05,2]
[347447901,1735824638279,-2418.90747007,9.99e-05,2]
[347447902,1735824638314,-896.31354805,9.99e-05,2]
[347447903,1735824638374,-9700.69999999,9.99e-05,2]
[347447904,1735824638384,-3244.97643816,9.99e-05,2]
[347447905,1735824638395,-2223.44038987,9.99e-05,2]
[347447906,1735824638407,-480.00334765,9.99e-05,2]
[347448021,1735824640182,-684.89057534,9.99e-05,2]
[347448022,1735824640193,-9068.20096243,9.99e-05,2]
[347448023,1735824640204,-10067.87935823,9.99e-05,2]
[347448031,1735824641484,-340.15406975,9.99e-05,2]
[347448032,1735824641495,-18599.6974951,9.99e-05,2]
[347448033,1735824641541,-512.27802841,9.99e-05,2]
[347448034,1735824641552,-500.0,9.99e-05,2]
[347448035,1735824641566,-775.59031934,9.99e-05,2]
[347448042,1735824643274,-11876.39998308,9.99e-05,2]
[347448043,1735824643287,-792.05856041,9.99e-05,2]
[347448044,1735824643299,-14929.34176829,9.99e-05,2]
[347448045,1735824643335,-828677.96193133,9.99e-05,2]
[347448046,1735824643394,-10816.61358908,9.99e-05,2]
[347448047,1735824643455,-9690.6,9.99e-05,2]
[347448330,1735824646455,-16021.28016304,9.99e-05,2]
[347448336,1735824646501,-2252.76532935,9.99e-05,2]
[347448340,1735824646530,-2831255.48630342,9.99e-05,2]
[347448342,1735824646541,-4950.0,9.99e-05,2]
[347448344,1735824646552,-1200.0,9.99e-05,2]
[347448358,1735824646681,-19380.99999999,9.99e-05,2]
[347448368,1735824646756,-1864.749998,9.99e-05,2]
[347448371,1735824646767,-1747820.75389254,9.99e-05,2]
[347448375,1735824646778,-20617.46189774,9.99e-05,2]
[347448377,1735824646789,-5132.2190332,9.99e-05,2]
[347448379,1735824646800,-2112.7,9.99e-05,2]
[347448381,1735824646811,-395.77405065,9.99e-05,2]
[347448388,1735824646855,-524.31588696,9.99e-05,2]
[347448390,1735824646867,-211095.45477527,9.99e-05,2]
[347450712,1735824703419,300.0,9.498e-05,2]
[347450713,1735824743970,184.633,9.49e-05,2]
[347450714,1735824803936,1000.0,9.159e-05,2]
[347450716,1735824857381,500.0,0.00023,120]
[347450717,1735824923530,250.0,9.157e-05,2]
[347450718,1735824958091,2415.66,0.00023,120]
[347450719,1735824967650,250.0,9.221e-05,2]
[347450720,1735824981186,1204.0,0.00023,120]
[347450721,1735825005945,446.31,9.221e-05,2]
[347450722,1735825008463,168.35,9.498e-05,2]
[347450723,1735825094544,949.92,9.229e-05,2]
[347450725,1735825304085,689.75,9.269e-05,2]
[347450726,1735825410851,176.685,9.49e-05,2]
[347450727,1735825418483,2238.18787983,9.261e-05,2]
[347450728,1735825418506,10000.0,9.261e-05,2]
[347450729,1735825418529,4204.25212017,9.261e-05,2]
[347450730,1735825469967,376.41,8.219e-05,2]
[347450731,1735825747411,1000.0,9.241e-05,2]